[Event "Fagernes Chess Open 2025"]
[Site "Fagernes"]
[Date "2025.04.16"]
[Round "4.1"]
[White "Ali, Karim"]
[Black "Hansen, Thobias Gotaas"]
[Result "0-1"]
[Annotator "NA RC"]
[ECO "D05"]
[WhiteElo "1876"]
[BlackElo "1805"]
[PlyCount "66"]
[EventDate "2025.04.12"]
[EventCountry "NOR"]
[SourceTitle "playchess.com"]
[Source "ChessBase"]
[SourceQuality "1"]
[TimeControl "40/6000+30:2400+30"]

1. d4 {[%emt 0:04:01]} Nf6 {[%emt 0:01:57]} 2. Nf3 {[%emt 0:00:08]} e6 {[%emt 0:00:14]} 3. e3 {[%emt 0:00:04]} c5 {[%emt 0:00:20]} 4. Bd3 {[%emt 0:00:32]} Nc6 {[%emt 0:00:18]} 5. O-O {[%emt 0:00:35]} d5 {[%emt 0:02:50]} 6. c3 {[%emt 0:04:21]} Bd6 {[%emt 0:01:53]} 7. Nbd2 {[%emt 0:00:46]} O-O {[%emt 0:00:36]} 8. dxc5 {[%emt 0:03:00]} Bxc5 {[%emt 0:00:43]} 9. e4 {[%emt 0:01:53]} h6 {[%emt 0:00:53]} 10. e5 {[%emt 0:06:14]} Nd7 {[%emt 0:16:34]} 11. Re1 {[%emt 0:21:01]} a5 {[%emt 0:21:26]} 12. Nb3 {[%emt 0:05:55]} b6 {[%emt 0:10:20]} 13. Nxc5 {[%emt 0:01:34]} bxc5 {[%emt 0:01:30]} 14. Bb1 {[%emt 0:02:06]} f5 {[%emt 0:08:45]} 15. h4 {[%emt 0:11:43]} Qc7 {[%emt 0:03:55]} 16. Bf4 {[%emt 0:03:05]} a4 {[%emt 0:02:53]} 17. Bc2 {[%emt 0:02:33]} a3 {[%emt 0:01:46]} 18. b3 {[%emt 0:00:26]} Nb6 {[%emt 0:04:32]} 19. Rc1 {[%emt 0:04:38]} Bb7 {[%emt 0:04:13]} 20. h5 {[%emt 0:12:02]} d4 {[%emt 0:02:02]} 21. cxd4 {[%emt 0:00:36]} Nd5 {[%emt 0:00:16]} 22. Qd2 {[%emt 0:03:35]} cxd4 {[%emt 0:02:39]} 23. Nxd4 {[%emt 0:01:51]} Nxd4 {[%emt 0:00:55]} 24. Qxd4 {[%emt 0:00:05]} Qe7 {[%emt 0:07:03]} 25. Bg3 {[%emt 0:02:49]} f4 {[%emt 0:01:25]} 26. Qd3 {[%emt 0:01:23]} Rf5 {[%emt 0:01:34]} 27. Bh2 {[%emt 0:03:43]} Qg5 {[%emt 0:04:36]} 28. Qh3 {[%emt 0:01:08]} Rxe5 {[%emt 0:00:48]} 29. Bb1 {[%emt 0:02:39]} Nc3 {[%emt 0:02:22]} 30. Bxf4 {[%emt 0:01:05]} Qxf4 {[%emt 0:00:39]} 31. Qxc3 {[%emt 0:00:26]} Rg5 {[%emt 0:03:26]} 32. g3 {[%emt 0:01:11]} Rxh5 {[%emt 0:00:48]} 33. Be4 {[%emt 0:00:30]} Bxe4 {[%emt 0:00:29]} 0-1

[Event "Fagernes Chess Open 2025"]
[Site "Fagernes"]
[Date "2025.04.16"]
[Round "4.2"]
[White "Stai, Sondre"]
[Black "Andersen, Guttorm"]
[Result "1-0"]
[Annotator "NA RC"]
[ECO "D00"]
[WhiteElo "1786"]
[BlackElo "1842"]
[PlyCount "59"]
[EventDate "2025.04.12"]
[EventCountry "NOR"]
[SourceTitle "playchess.com"]
[Source "ChessBase"]
[SourceQuality "1"]
[TimeControl "40/6000+30:2400+30"]

1. d4 {[%emt 0:00:03]} d5 {[%emt 0:00:17]} 2. Nc3 {[%emt 0:00:15]} e6 {[%emt 0:03:37]} 3. Bf4 {[%emt 0:00:14]} Bd6 {[%emt 0:07:27]} 4. e3 {[%emt 0:01:50]} a6 {[%emt 0:00:22]} 5. Nf3 {[%emt 0:01:07]} c5 {[%emt 0:00:06]} 6. Ne5 {[%emt 0:03:08]} Nc6 {[%emt 0:01:41]} 7. Qd2 {[%emt 0:05:59]} Nge7 {[%emt 0:08:58]} 8. h4 {[%emt 0:06:03]} cxd4 {[%emt 0:00:46]} 9. exd4 {[%emt 0:01:55]} Qc7 {[%emt 0:04:56]} 10. O-O-O {[%emt 0:10:51]} Nxe5 {[%emt 0:01:13]} 11. dxe5 {[%emt 0:00:44]} Bxe5 {[%emt 0:00:28]} 12. Bxe5 {[%emt 0:00:10]} Qxe5 {[%emt 0:00:10]} 13. f4 {[%emt 0:02:36]} Qc7 {[%emt 0:03:45]} 14. Bd3 {[%emt 0:01:59]} Bd7 {[%emt 0:06:31]} 15. f5 {[%emt 0:04:26]} e5 {[%emt 0:06:16]} 16. g4 {[%emt 0:05:16]} Bc6 {[%emt 0:01:42]} 17. Qg5 {[%emt 0:03:18]} e4 {[%emt 0:09:19]} 18. Qxg7 {[%emt 0:04:51]} O-O-O {[%emt 0:00:31]} 19. Be2 {[%emt 0:01:48]} Kb8 {[%emt 0:02:47]} 20. a3 {[%emt 0:05:07]} Nc8 {[%emt 0:12:30]} 21. Nxd5 {[%emt 0:12:54]} Bxd5 {[%emt 0:01:49]} 22. Rxd5 {[%emt 0:00:17]} Rhg8 {[%emt 0:00:39]} 23. Qd4 {[%emt 0:01:56]} Rxd5 {[%emt 0:13:25]} 24. Qxd5 {[%emt 0:00:05]} Qf4+ {[%emt 0:00:35]} 25. Kb1 {[%emt 0:01:01]} Qe3 {[%emt 0:07:19]} 26. Bd1 {[%emt 0:09:25]} Nb6 {[%emt 0:01:55]} 27. Qxf7 {[%emt 0:02:42]} Rc8 {[%emt 0:01:22]} 28. g5 {[%emt 0:03:54]} Nc4 {[%emt 0:02:07]} 29. g6 {[%emt 0:02:33]} Qd4 {[%emt 0:02:13]} 30. c3 {[%emt 0:00:53]} 1-0

[Event "Fagernes Chess Open 2025"]
[Site "Fagernes"]
[Date "2025.04.16"]
[Round "4.3"]
[White "Aroven, Mikael"]
[Black "Arulmaran, Abishan"]
[Result "1/2-1/2"]
[Annotator "RC"]
[ECO "E65"]
[WhiteElo "2145"]
[BlackElo "1858"]
[PlyCount "142"]
[EventDate "2025.04.12"]
[EventCountry "NOR"]
[SourceTitle "playchess.com"]
[Source "ChessBase"]
[SourceQuality "1"]
[TimeControl "40/6000+30:2400+30"]

1. c4 {[%emt 0:00:08]} Nf6 {[%emt 0:01:40]} 2. Nc3 {[%emt 0:00:40]} g6 {[%emt 0:00:10]} 3. g3 {[%emt 0:01:29]} Bg7 {[%emt 0:00:20]} 4. Bg2 {[%emt 0:00:04]} O-O {[%emt 0:00:27]} 5. d4 {[%emt 0:03:22]} d6 {[%emt 0:01:28]} 6. Nf3 {[%emt 0:01:06]} c5 {[%emt 0:01:20]} 7. O-O {[%emt 0:00:26]} Nc6 {[%emt 0:00:55]} 8. h3 {[%emt 0:00:12]} a6 {[%emt 0:07:53]} 9. Be3 {[%emt 0:00:52]} Na5 {[%emt 0:02:06]} 10. b3 {[%emt 0:01:25]} b6 {[%emt 0:05:56]} 11. Rc1 {[%emt 0:00:17]} Rb8 {[%emt 0:00:21]} 12. Qd2 {[%emt 0:00:46]} Re8 {[%emt 0:03:14]} 13. Rfd1 {[%emt 0:00:12]} Bb7 {[%emt 0:05:32]} 14. Qc2 {[%emt 0:18:14]} Qc7 {[%emt 0:06:52]} 15. d5 {[%emt 0:04:41]} Bc8 {[%emt 0:07:34]} 16. Nd2 {[%emt 0:11:05]} b5 {[%emt 0:02:09]} 17. Nce4 {[%emt 0:00:40]} bxc4 {[%emt 0:02:42]} 18. Nxc4 {[%emt 0:08:11]} Nxc4 {[%emt 0:07:06]} 19. Qxc4 {[%emt 0:02:50]} Nxe4 {[%emt 0:04:27]} 20. Bxe4 {[%emt 0:02:27]} Qa5 {[%emt 0:03:20]} 21. Qc2 {[%emt 0:08:43]} Bxh3 {[%emt 0:00:52]} 22. Bd2 {[%emt 0:00:31]} Qb6 {[%emt 0:02:23]} 23. Bd3 {[%emt 0:00:13]} Be5 {[%emt 0:03:17]} 24. Qc4 {[%emt 0:01:40]} Bd7 {[%emt 0:03:19]} 25. Qh4 {[%emt 0:01:01]} Bf6 {[%emt 0:02:40]} 26. Qf4 {[%emt 0:03:06]} Be5 {[%emt 0:00:49]} 27. Qh4 {[%emt 0:01:25]} Bf6 {[%emt 0:00:39]} 28. Bg5 {[%emt 0:04:09]} Bxg5 {[%emt 0:01:05]} 29. Qxg5 {[%emt 0:00:02]} Kg7 {[%emt 0:02:36]} 30. Kg2 {[%emt 0:02:06]} h6 {[%emt 0:00:29]} 31. Qe3 {[%emt 0:00:41]} e6 {[%emt 0:03:42]} 32. Rh1 {[%emt 0:00:25]} Rh8 {[%emt 0:01:04]} 33. Rc4 {[%emt 0:02:19]} exd5 {[%emt 0:02:09]} 34. Rch4 {[%emt 0:00:57]} c4 {[%emt 0:04:38]} 35. Qxb6 {[%emt 0:04:53]} Rxb6 {[%emt 0:00:37]} 36. bxc4 {[%emt 0:00:11]} dxc4 {[%emt 0:01:18]} 37. Rxc4 {[%emt 0:00:48]} Bb5 {[%emt 0:02:37]} 38. Rd4 {[%emt 0:07:59]} Bxd3 {[%emt 0:00:48]} 39. Rxd3 {[%emt 0:00:17]} Rb2 {[%emt 0:00:55]} 40. a3 {[%emt 0:00:18]} Rxe2 {[%emt 0:01:31]} 41. Rxd6 {[%emt 0:40:09]} Re6 {[%emt 0:40:23]} 42. Rxe6 {[%emt 0:00:19]} fxe6 {[%emt 0:00:03]} 43. Rb1 {[%emt 0:00:23]} Ra8 {[%emt 0:02:16]} 44. Kf3 {[%emt 0:00:19]} Kf6 {[%emt 0:00:09]} 45. Ke4 {[%emt 0:00:22]} Rc8 {[%emt 0:01:13]} 46. Kd4 {[%emt 0:03:06]} Rc2 {[%emt 0:00:47]} 47. f3 {[%emt 0:00:27]} Ra2 {[%emt 0:01:53]} 48. Rb3 {[%emt 0:00:08]} h5 {[%emt 0:00:53]} 49. f4 {[%emt 0:00:11]} Kf5 {[%emt 0:00:19]} 50. Kc5 {[%emt 0:00:25]} Rd2 {[%emt 0:01:07]} 51. Re3 {[%emt 0:00:54]} Rd5+ {[%emt 0:01:00]} 52. Kc6 {[%emt 0:00:22]} Rb5 {[%emt 0:04:04]} 53. a4 {[%emt 0:01:25]} Rb4 {[%emt 0:00:51]} 54. Re5+ {[%emt 0:00:38]} Kf6 {[%emt 0:00:43]} 55. Ra5 {[%emt 0:02:20]} Rb3 {[%emt 0:00:33]} 56. Rg5 {[%emt 0:06:28]} Ra3 {[%emt 0:02:04]} 57. a5 {[%emt 0:00:44]} Rb3 {[%emt 0:01:09]} 58. Kc7 {[%emt 0:04:22]} Rb4 {[%emt 0:04:54]} 59. Rc5 {[%emt 0:00:00]} Rb3 {[%emt 0:00:00]} 60. Rg5 {[%emt 0:00:00]} e5 {[%emt 0:00:00]} 61. Rxe5 {[%emt 0:00:00]} Rxg3 {[%emt 0:00:00]} 62. Kb6 {[%emt 0:00:00]} h4 {[%emt 0:00:00]} 63. Kxa6 {[%emt 0:00:00]} h3 {[%emt 0:00:00]} 64. Re8 {[%emt 0:00:11]} Rb3 {[%emt 0:00:00]} 65. Rh8 {[%emt 0:00:56]} Kf5 {[%emt 0:00:00]} 66. Rh4 {[%emt 0:00:11]} g5 {[%emt 0:00:00]} 67. fxg5 {[%emt 0:00:03]} Kxg5 {[%emt 0:00:00]} 68. Rh8 {[%emt 0:02:03]} Kg4 {[%emt 0:00:00]} 69. Ka7 {[%emt 0:04:52]} Kg3 {[%emt 0:00:00]} 70. a6 {[%emt 0:00:45]} Kg2 {[%emt 0:00:00]} 71. Rg8+ {[%emt 0:01:34]} Rg3 {[%emt 0:00:00]} 1/2-1/2

[Event "Fagernes Chess Open 2025"]
[Site "Fagernes"]
[Date "2025.04.16"]
[Round "4.4"]
[White "Kopperud, Vidar Aleksander"]
[Black "Solbu, August"]
[Result "1/2-1/2"]
[Annotator "NA RC"]
[ECO "D63"]
[WhiteElo "1778"]
[BlackElo "1887"]
[PlyCount "76"]
[EventDate "2025.04.12"]
[EventCountry "NOR"]
[SourceTitle "playchess.com"]
[Source "ChessBase"]
[SourceQuality "1"]
[TimeControl "40/6000+30:2400+30"]

1. d4 {[%emt 0:00:03]} d5 {[%emt 0:00:02]} 2. c4 {[%emt 0:00:15]} e6 {[%emt 0:00:09]} 3. Nc3 {[%emt 0:00:07]} Nf6 {[%emt 0:00:02]} 4. Bg5 {[%emt 0:00:17]} Be7 {[%emt 0:00:08]} 5. e3 {[%emt 0:00:08]} Nbd7 {[%emt 0:00:17]} 6. Nf3 {[%emt 0:00:20]} O-O {[%emt 0:03:14]} 7. Rc1 {[%emt 0:00:40]} dxc4 {[%emt 0:00:29]} 8. Bxc4 {[%emt 0:01:19]} c5 {[%emt 0:00:21]} 9. O-O {[%emt 0:03:14]} a6 {[%emt 0:00:44]} 10. a4 {[%emt 0:04:44]} h6 {[%emt 0:00:38]} 11. Bh4 {[%emt 0:02:41]} cxd4 {[%emt 0:00:52]} 12. Nxd4 {[%emt 0:06:06]} Bc5 {[%emt 0:10:06]} 13. Ne4 {[%emt 0:10:47]} Be7 {[%emt 0:01:10]} 14. Nc3 {[%emt 0:05:09]} Nc5 {[%emt 0:07:34]} 15. b4 {[%emt 0:07:23]} Nce4 {[%emt 0:00:45]} 16. Nxe4 {[%emt 0:04:45]} Nxe4 {[%emt 0:00:43]} 17. Bxe7 {[%emt 0:02:15]} Qxe7 {[%emt 0:00:54]} 18. Bd3 {[%emt 0:06:47]} Nd6 {[%emt 0:07:37]} 19. Qb3 {[%emt 0:17:32]} e5 {[%emt 0:05:24]} 20. Ne2 {[%emt 0:02:19]} Be6 {[%emt 0:03:43]} 21. Qb1 {[%emt 0:04:36]} f5 {[%emt 0:09:28]} 22. Ng3 {[%emt 0:07:24]} f4 {[%emt 0:22:28]} 23. exf4 {[%emt 0:02:22]} exf4 {[%emt 0:02:06]} 24. Ne4 {[%emt 0:01:15]} f3 {[%emt 0:01:56]} 25. g3 {[%emt 0:02:33]} Nxe4 {[%emt 0:04:42]} 26. Bxe4 {[%emt 0:00:14]} Qf7 {[%emt 0:09:47]} 27. Bg6 {[%emt 0:02:58]} Qf6 {[%emt 0:04:11]} 28. Rfe1 {[%emt 0:02:23]} Rad8 {[%emt 0:01:50]} 29. Rcd1 {[%emt 0:03:19]} Bc4 {[%emt 0:03:17]} 30. Bd3 {[%emt 0:04:18]} Rxd3 {[%emt 0:04:49]} 31. Rxd3 {[%emt 0:00:30]} Qf5 {[%emt 0:01:28]} 32. Ree3 {[%emt 0:00:55]} Qh3 {[%emt 0:00:16]} 33. Rxf3 {[%emt 0:00:31]} Rxf3 {[%emt 0:00:32]} 34. Rxf3 {[%emt 0:00:18]} Bd5 {[%emt 0:00:08]} 35. Qd3 {[%emt 0:00:42]} Bxf3 {[%emt 0:00:22]} 36. Qxf3 {[%emt 0:00:11]} Qd7 {[%emt 0:00:18]} 37. Qb3+ {[%emt 0:00:30]} Kh8 {[%emt 0:00:02]} 38. Kg2 {[%emt 0:01:52]} Qe7 {[%emt 0:00:26]} 1/2-1/2

[Event "Fagernes Chess Open 2025"]
[Site "Fagernes"]
[Date "2025.04.16"]
[Round "4.5"]
[White "Engkvist, Tomas"]
[Black "Neukamm, Christian"]
[Result "0-1"]
[Annotator "NA RC"]
[ECO "C54"]
[WhiteElo "1969"]
[BlackElo "1776"]
[PlyCount "84"]
[EventDate "2025.04.12"]
[EventCountry "NOR"]
[SourceTitle "playchess.com"]
[Source "ChessBase"]
[SourceQuality "1"]
[TimeControl "40/6000+30:2400+30"]

1. e4 {[%emt 0:00:01]} e5 {[%emt 0:00:17]} 2. Nf3 {[%emt 0:00:04]} Nc6 {[%emt 0:00:06]} 3. Bc4 {[%emt 0:00:31]} Bc5 {[%emt 0:00:10]} 4. d3 {[%emt 0:00:27]} Nf6 {[%emt 0:01:36]} 5. O-O {[%emt 0:00:18]} d6 {[%emt 0:00:37]} 6. c3 {[%emt 0:00:21]} a6 {[%emt 0:00:32]} 7. Bb3 {[%emt 0:00:06]} Ba7 {[%emt 0:00:22]} 8. Re1 {[%emt 0:00:16]} h6 {[%emt 0:08:15]} 9. Nbd2 {[%emt 0:00:43]} O-O {[%emt 0:00:27]} 10. Nf1 {[%emt 0:00:23]} Be6 {[%emt 0:01:09]} 11. Ng3 {[%emt 0:03:06]} Bxb3 {[%emt 0:04:08]} 12. Qxb3 {[%emt 0:00:23]} Qd7 {[%emt 0:00:55]} 13. Nf5 {[%emt 0:11:28]} Rab8 {[%emt 0:10:13]} 14. Qd1 {[%emt 0:05:20]} Ne7 {[%emt 0:02:16]} 15. N3h4 {[%emt 0:01:00]} Ng6 {[%emt 0:07:53]} 16. g3 {[%emt 0:01:02]} Nxh4 {[%emt 0:19:44]} 17. gxh4 {[%emt 0:00:27]} g6 {[%emt 0:00:42]} 18. Nxh6+ {[%emt 0:06:57]} Kg7 {[%emt 0:01:07]} 19. Bg5 {[%emt 0:00:48]} Rh8 {[%emt 0:02:43]} 20. Qf3 {[%emt 0:00:33]} Qe6 {[%emt 0:00:29]} 21. Nf5+ {[%emt 0:19:01]} gxf5 {[%emt 0:01:14]} 22. exf5 {[%emt 0:00:06]} Qd7 {[%emt 0:05:25]} 23. h3 {[%emt 0:00:12]} Qc6 {[%emt 0:01:41]} 24. Qg3 {[%emt 0:01:04]} Rbg8 {[%emt 0:00:22]} 25. Kh2 {[%emt 0:03:58]} Nh5 {[%emt 0:03:36]} 26. Qg4 {[%emt 0:01:51]} Kf8 {[%emt 0:00:31]} 27. Rg1 {[%emt 0:01:44]} Nf4 {[%emt 0:05:01]} 28. f6 {[%emt 0:08:16]} Ne6 {[%emt 0:03:43]} 29. Bh6+ {[%emt 0:05:30]} Ke8 {[%emt 0:00:22]} 30. Bg7 {[%emt 0:00:05]} Bxf2 {[%emt 0:03:33]} 31. Rgf1 {[%emt 0:05:04]} Bxh4 {[%emt 0:10:50]} 32. d4 {[%emt 0:01:17]} Kd8 {[%emt 0:04:39]} 33. Rad1 {[%emt 0:01:20]} Qb5 {[%emt 0:03:32]} 34. d5 {[%emt 0:00:40]} Nf4 {[%emt 0:03:16]} 35. Rg1 {[%emt 0:09:07]} Bf2 {[%emt 0:02:06]} 36. Rgf1 {[%emt 0:00:33]} Rxh3+ {[%emt 0:00:34]} 37. Qxh3 {[%emt 0:00:05]} Nxh3 {[%emt 0:00:09]} 38. Kxh3 {[%emt 0:00:04]} Qe2 {[%emt 0:01:08]} 39. Kg2 {[%emt 0:00:35]} Be1+ {[%emt 0:00:29]} 40. Kg1 {[%emt 0:00:30]} Qxd1 {[%emt 0:00:30]} 41. Kg2 {[%emt 0:40:17]} Qe2+ {[%emt 0:41:38]} 42. Kg1 {[%emt 0:00:05]} Bh4 {[%emt 0:00:56]} 0-1

[Event "Fagernes Chess Open 2025"]
[Site "Fagernes"]
[Date "2025.04.16"]
[Round "4.6"]
[White "Rynning, Rune Kleiven"]
[Black "Sivaparan, Isai"]
[Result "1/2-1/2"]
[Annotator "RC"]
[ECO "E05"]
[WhiteElo "1776"]
[BlackElo "1944"]
[PlyCount "133"]
[EventDate "2025.04.12"]
[EventCountry "NOR"]
[SourceTitle "playchess.com"]
[Source "ChessBase"]
[SourceQuality "1"]
[TimeControl "40/6000+30:2400+30"]

1. d4 {[%emt 0:00:04]} Nf6 {[%emt 0:00:24]} 2. c4 {[%emt 0:00:06]} e6 {[%emt 0:00:11]} 3. Nf3 {[%emt 0:00:14]} d5 {[%emt 0:00:32]} 4. g3 {[%emt 0:00:14]} Be7 {[%emt 0:00:33]} 5. Bg2 {[%emt 0:00:08]} O-O {[%emt 0:00:38]} 6. O-O {[%emt 0:00:06]} dxc4 {[%emt 0:00:40]} 7. Na3 {[%emt 0:00:09]} Bxa3 {[%emt 0:03:41]} 8. bxa3 {[%emt 0:00:06]} Nc6 {[%emt 0:12:26]} 9. a4 {[%emt 0:01:18]} Re8 {[%emt 0:02:14]} 10. Ba3 {[%emt 0:02:16]} a6 {[%emt 0:07:05]} 11. Rc1 {[%emt 0:03:45]} Bd7 {[%emt 0:12:07]} 12. Rxc4 {[%emt 0:04:13]} b5 {[%emt 0:03:14]} 13. Rc1 {[%emt 0:02:22]} Rb8 {[%emt 0:04:32]} 14. Ne5 {[%emt 0:06:04]} Nxe5 {[%emt 0:04:59]} 15. dxe5 {[%emt 0:00:08]} Nd5 {[%emt 0:03:29]} 16. Bxd5 {[%emt 0:04:08]} exd5 {[%emt 0:00:44]} 17. Qxd5 {[%emt 0:00:08]} Bh3 {[%emt 0:04:50]} 18. Rfd1 {[%emt 0:03:02]} Qxd5 {[%emt 0:01:27]} 19. Rxd5 {[%emt 0:00:10]} Be6 {[%emt 0:00:53]} 20. Rdc5 {[%emt 0:05:42]} Bxa2 {[%emt 0:02:55]} 21. axb5 {[%emt 0:01:22]} axb5 {[%emt 0:02:00]} 22. Bb4 {[%emt 0:09:35]} Bc4 {[%emt 0:02:23]} 23. e3 {[%emt 0:02:56]} Ra8 {[%emt 0:03:05]} 24. Rxc7 {[%emt 0:03:42]} Rxe5 {[%emt 0:01:37]} 25. Rd1 {[%emt 0:08:42]} h5 {[%emt 0:03:04]} 26. h4 {[%emt 0:03:07]} Ra2 {[%emt 0:05:04]} 27. Rc8+ {[%emt 0:06:49]} Kh7 {[%emt 0:03:06]} 28. Bc3 {[%emt 0:04:56]} Rd5 {[%emt 0:05:56]} 29. Rxd5 {[%emt 0:04:39]} Bxd5 {[%emt 0:00:38]} 30. Rc5 {[%emt 0:01:36]} Bf3 {[%emt 0:00:41]} 31. Rf5 {[%emt 0:03:20]} b4 {[%emt 0:04:22]} 32. Bd4 {[%emt 0:03:09]} Bc6 {[%emt 0:03:23]} 33. Rxh5+ {[%emt 0:00:29]} Kg8 {[%emt 0:00:37]} 34. Rc5 {[%emt 0:05:24]} Bf3 {[%emt 0:00:36]} 35. Rf5 {[%emt 0:00:57]} Be4 {[%emt 0:00:46]} 36. Re5 {[%emt 0:03:43]} Bf3 {[%emt 0:01:42]} 37. Rf5 {[%emt 0:00:10]} Be2 {[%emt 0:00:38]} 38. Rg5 {[%emt 0:07:33]} g6 {[%emt 0:05:28]} 39. Rd5 {[%emt 0:06:04]} Ra8 {[%emt 0:02:58]} 40. Be5 {[%emt 0:05:43]} Rc8 {[%emt 0:01:28]} 41. Kg2 {[%emt 0:03:41]} Bc4 {[%emt 0:05:06]} 42. Rd2 {[%emt 0:01:31]} Be6 {[%emt 0:01:06]} 43. Bf6 {[%emt 0:03:34]} b3 {[%emt 0:01:36]} 44. Rb2 {[%emt 0:00:07]} Rb8 {[%emt 0:00:56]} 45. Kf3 {[%emt 0:01:05]} Bc4 {[%emt 0:05:50]} 46. Kf4 {[%emt 0:03:42]} Bd3 {[%emt 0:00:00]} 47. f3 {[%emt 0:03:50]} Bc2 {[%emt 0:00:29]} 48. Kg4 {[%emt 0:02:12]} Rb6 {[%emt 0:02:53]} 49. Bd4 {[%emt 0:03:42]} Rb5 {[%emt 0:01:13]} 50. Kh3 {[%emt 0:06:53]} Kf8 {[%emt 0:02:11]} 51. Kg2 {[%emt 0:00:39]} Ke7 {[%emt 0:00:40]} 52. Kf2 {[%emt 0:01:07]} Ke6 {[%emt 0:02:11]} 53. Ke2 {[%emt 0:00:20]} Rb8 {[%emt 0:00:56]} 54. g4 {[%emt 0:03:19]} f5 {[%emt 0:02:08]} 55. h5 {[%emt 0:00:40]} gxh5 {[%emt 0:04:15]} 56. gxh5 {[%emt 0:00:26]} Rg8 {[%emt 0:01:17]} 57. Kf2 {[%emt 0:01:26]} Rg5 {[%emt 0:00:52]} 58. h6 {[%emt 0:00:18]} Rh5 {[%emt 0:00:42]} 59. Bg7 {[%emt 0:00:24]} Kf7 {[%emt 0:02:57]} 60. Kg3 {[%emt 0:01:54]} Kg6 {[%emt 0:01:18]} 61. Kf4 {[%emt 0:02:33]} Rh1 {[%emt 0:01:24]} 62. Ke5 {[%emt 0:02:10]} Re1 {[%emt 0:01:00]} 63. Kf4 {[%emt 0:01:25]} Kh7 {[%emt 0:01:01]} 64. Bc3 {[%emt 0:02:05]} Re2 {[%emt 0:00:27]} 65. Bg7 {[%emt 0:00:19]} Kg8 {[%emt 0:00:22]} 66. Bd4 {[%emt 0:00:25]} Rd2 {[%emt 0:01:26]} 67. Bc3 {[%emt 0:00:44]} 1/2-1/2

[Event "Fagernes Chess Open 2025"]
[Site "Fagernes"]
[Date "2025.04.16"]
[Round "4.7"]
[White "Abrahamsson, Roaul"]
[Black "Vollheim, Daniel O"]
[Result "1/2-1/2"]
[Annotator "NA RC"]
[ECO "D35"]
[WhiteElo "1920"]
[BlackElo "1764"]
[PlyCount "59"]
[EventDate "2025.04.12"]
[EventCountry "NOR"]
[SourceTitle "playchess.com"]
[Source "ChessBase"]
[SourceQuality "1"]
[TimeControl "40/6000+30:2400+30"]

1. d4 {[%emt 0:00:06]} d5 {[%emt 0:00:12]} 2. c4 {[%emt 0:00:08]} e6 {[%emt 0:00:04]} 3. cxd5 {[%emt 0:00:14]} exd5 {[%emt 0:00:08]} 4. Nc3 {[%emt 0:00:12]} Nf6 {[%emt 0:00:13]} 5. Bg5 {[%emt 0:00:24]} Be7 {[%emt 0:00:48]} 6. Qc2 {[%emt 0:00:22]} c6 {[%emt 0:01:33]} 7. e3 {[%emt 0:00:21]} Be6 {[%emt 0:02:41]} 8. Bd3 {[%emt 0:00:58]} Nbd7 {[%emt 0:03:56]} 9. Nge2 {[%emt 0:02:16]} O-O {[%emt 0:01:35]} 10. O-O {[%emt 0:07:26]} h6 {[%emt 0:02:06]} 11. Bh4 {[%emt 0:01:35]} Ne8 {[%emt 0:17:05]} 12. Bg3 {[%emt 0:01:49]} Nd6 {[%emt 0:00:54]} 13. Nf4 {[%emt 0:08:07]} Nf6 {[%emt 0:02:06]} 14. Rad1 {[%emt 0:05:08]} Qd7 {[%emt 0:06:50]} 15. f3 {[%emt 0:03:04]} Bf5 {[%emt 0:01:03]} 16. Bf2 {[%emt 0:02:31]} Bxd3 {[%emt 0:02:29]} 17. Qxd3 {[%emt 0:03:12]} Nc4 {[%emt 0:07:37]} 18. Qe2 {[%emt 0:02:13]} Bd6 {[%emt 0:02:09]} 19. Nd3 {[%emt 0:04:15]} Rfe8 {[%emt 0:02:38]} 20. b3 {[%emt 0:07:48]} Nb6 {[%emt 0:00:24]} 21. e4 {[%emt 0:02:27]} dxe4 {[%emt 0:03:42]} 22. fxe4 {[%emt 0:03:02]} Nbd5 {[%emt 0:01:58]} 23. Nxd5 {[%emt 0:00:46]} Nxd5 {[%emt 0:00:38]} 24. Ne5 {[%emt 0:15:51]} Nc3 {[%emt 0:09:52]} 25. Qf3 {[%emt 0:03:30]} Bxe5 {[%emt 0:00:55]} 26. Qxc3 {[%emt 0:01:56]} Bc7 {[%emt 0:04:56]} 27. e5 {[%emt 0:02:15]} Bb6 {[%emt 0:05:05]} 28. Qf3 {[%emt 0:03:30]} Qe6 {[%emt 0:02:53]} 29. Rfe1 {[%emt 0:05:05]} Rad8 {[%emt 0:00:49]} 30. Kf1 {[%emt 0:06:52]} 1/2-1/2

[Event "Fagernes Chess Open 2025"]
[Site "Fagernes"]
[Date "2025.04.16"]
[Round "4.8"]
[White "Lysen, Terje Kevin G"]
[Black "Digernes, Mikael"]
[Result "1/2-1/2"]
[Annotator "NA RC"]
[ECO "B32"]
[WhiteElo "1667"]
[BlackElo "1781"]
[PlyCount "59"]
[EventDate "2025.04.12"]
[EventCountry "NOR"]
[SourceTitle "playchess.com"]
[Source "ChessBase"]
[SourceQuality "1"]
[TimeControl "40/6000+30:2400+30"]

1. e4 {[%emt 0:00:02]} c5 {[%emt 0:02:28]} 2. Nf3 {[%emt 0:00:10]} Nc6 {[%emt 0:00:24]} 3. d4 {[%emt 0:00:29]} cxd4 {[%emt 0:00:06]} 4. Nxd4 {[%emt 0:00:04]} e5 {[%emt 0:00:11]} 5. Nb5 {[%emt 0:04:53]} d6 {[%emt 0:00:08]} 6. c4 {[%emt 0:03:04]} Nf6 {[%emt 0:00:42]} 7. N1c3 {[%emt 0:00:15]} a6 {[%emt 0:01:12]} 8. Na3 {[%emt 0:00:00]} g6 {[%emt 0:03:17]} 9. Nc2 {[%emt 0:02:29]} Bg7 {[%emt 0:03:55]} 10. Be2 {[%emt 0:05:01]} Be6 {[%emt 0:03:01]} 11. Bg5 {[%emt 0:01:54]} Qc7 {[%emt 0:09:48]} 12. Bxf6 {[%emt 0:01:51]} Bxf6 {[%emt 0:00:08]} 13. Nd5 {[%emt 0:00:05]} Bxd5 {[%emt 0:01:27]} 14. cxd5 {[%emt 0:01:55]} Nd4 {[%emt 0:12:41]} 15. Nxd4 {[%emt 0:08:56]} Qa5+ {[%emt 0:06:25]} 16. Qd2 {[%emt 0:03:09]} Qxd2+ {[%emt 0:00:08]} 17. Kxd2 {[%emt 0:00:03]} exd4 {[%emt 0:04:48]} 18. g3 {[%emt 0:13:15]} h5 {[%emt 0:05:38]} 19. Rac1 {[%emt 0:07:39]} Kd7 {[%emt 0:00:23]} 20. Rc4 {[%emt 0:01:59]} Rac8 {[%emt 0:10:18]} 21. Rhc1 {[%emt 0:10:03]} Rxc4 {[%emt 0:09:37]} 22. Rxc4 {[%emt 0:01:42]} Rc8 {[%emt 0:06:15]} 23. Rxc8 {[%emt 0:14:45]} Kxc8 {[%emt 0:00:08]} 24. Bd3 {[%emt 0:01:54]} g5 {[%emt 0:06:34]} 25. f3 {[%emt 0:04:10]} Be5 {[%emt 0:01:32]} 26. Ke2 {[%emt 0:00:28]} h4 {[%emt 0:00:27]} 27. Kf2 {[%emt 0:00:22]} Kc7 {[%emt 0:04:06]} 28. b4 {[%emt 0:01:14]} Kb6 {[%emt 0:00:49]} 29. a3 {[%emt 0:00:53]} a5 {[%emt 0:00:21]} 30. Kg2 {[%emt 0:03:08]} 1/2-1/2